fUSD/lending_fUSD_20240127
["ID","MTS","AMOUNT","RATE_DAILY","PERIOD"]
[312831069,1706315438706,-150.0,0.0002247,2]
[312831070,1706315438715,-150.0,0.00022471,2]
[312831071,1706315438726,-150.0,0.00022471,2]
[312831072,1706315438735,-150.0,0.00022472,2]
[312831073,1706315438744,-150.0,0.00022473,2]
[312831074,1706315438754,-150.0,0.00022474,2]
[312831075,1706315438763,-150.0,0.00022475,2]
[312831076,1706315438773,-150.0,0.00022475,2]
[312831077,1706315438782,-150.0,0.00022477,2]
[312831078,1706315438792,-150.0,0.0002248,2]
[312831079,1706315438801,-150.0,0.00022486,2]
[312831080,1706315438811,-150.0,0.0002249,2]
[312831081,1706315438820,-150.0,0.00022491,2]
[312831082,1706315438829,-150.0,0.00022494,2]
[312831083,1706315438839,-153.20760001,0.00022494,2]
[312831084,1706315438849,-150.0,0.00022495,2]
[312831085,1706315438861,-150.0,0.00022503,2]
[312831086,1706315438870,-150.0,0.00022504,2]
[312831087,1706315438880,-150.0,0.00022509,2]
[312831088,1706315438888,-150.0,0.00022512,2]
[312831089,1706315438898,-261.07397501,0.00022513,2]
[312831090,1706315438907,-678.4229406,0.00022513,2]
[312831091,1706315438917,-260.39182374,0.00022513,2]
[312831092,1706315438926,-767.12856577,0.00022513,2]
[312831093,1706315438937,-199.93220615,0.00022513,2]
[312831094,1706315438947,-209.89203288,0.00022513,2]
[312831095,1706315438956,-805.42629681,0.00022513,2]
[312831096,1706315438965,-364.56758947,0.00022513,2]
[312831097,1706315438975,-210.29381202,0.00022513,2]
[312831098,1706315438985,-289.00257985,0.00022514,2]
[312831099,1706315438994,-160.11045763,0.00022514,2]
[312831100,1706315439003,-300.07460703,0.00022514,2]
[312831101,1706315439012,-245000.0,0.00022516,2]
[312831102,1706315439021,-150.0,0.00022519,2]
[312831103,1706315439030,-150.0,0.00022519,2]
[312831104,1706315439039,-150.0,0.00022521,2]
[312831105,1706315439048,-150.0,0.00022529,2]
[312831106,1706315439057,-150.0,0.00022534,2]
[312831107,1706315439067,-150.0,0.00022537,2]
[312831108,1706315439077,-150.0,0.00022538,2]
[312831109,1706315439088,-150.0,0.00022541,2]
[312831110,1706315439098,-299.65060115,0.00022541,2]
[312831111,1706315439108,-3031.15764822,0.00022541,2]
[312831112,1706315439119,-171.24821524,0.00022541,2]
[312831113,1706315439129,-4641.49847148,0.00022541,2]
[312831114,1706315439138,-337.26118422,0.00022541,2]
[312831115,1706315439149,-1500.0,0.00022544,2]
[312831116,1706315439159,-150.0,0.00022547,2]
[312831117,1706315439170,-150.0,0.00022547,2]
[312831118,1706315439181,-176.58,0.00022548,2]
[312831119,1706315439191,-150.0,0.00022548,2]
[312831120,1706315439201,-150.0,0.0002255,2]
[312831121,1706315439211,-150.0,0.00022551,2]
[312831122,1706315439220,-150.0,0.00022555,2]
[312831123,1706315439230,-150.0,0.00022556,2]
[312831124,1706315439239,-150.0,0.00022557,2]
[312831125,1706315439249,-150.0,0.00022559,2]
[312831126,1706315439258,-150.0,0.0002256,2]
[312831127,1706315439267,-150.0,0.00022561,2]
[312831128,1706315439276,-150.0,0.00022567,2]
[312831129,1706315439285,-703.41,0.00022568,2]
[312831130,1706315439294,-150.0,0.00022568,2]
[312831131,1706315439303,-150.0,0.00022569,2]
[312831132,1706315439313,-150.0,0.00022572,2]
[312831133,1706315439322,-153.20760001,0.00022576,2]
[312831134,1706315439331,-150.0,0.00022577,2]
[312831135,1706315439340,-150.0,0.00022581,2]
[312831136,1706315439349,-150.0,0.00022583,2]
[312831137,1706315439359,-150.0,0.00022584,2]
[312831138,1706315439368,-150.0,0.00022591,2]
[312831139,1706315439377,-150.0,0.00022592,2]
[312831140,1706315439386,-150.0,0.00022593,2]
[312831141,1706315439396,-150.0,0.00022593,2]
[312831142,1706315439405,-220.35900405,0.00022594,2]
[312831143,1706315439414,-168.24796323,0.00022594,2]
[312831144,1706315439422,-15386.2249868,0.00022594,2]
[312831145,1706315439431,-4595.23508348,0.00022596,2]
[312831146,1706315439440,-2551.75668262,0.00022596,2]
[312831147,1706315439449,-2371.60671276,0.00022596,2]
[312831148,1706315439459,-291.8715584,0.00022596,2]
[312831149,1706315439468,-7364.455042,0.00022596,2]
[312831150,1706315439479,-10400.6457,0.00022597,2]
[312831151,1706315439488,-300.0,0.00022602,2]
[312831152,1706315439497,-1500.0,0.00022609,2]
[312831153,1706315439507,-150.0,0.00022612,2]
[312831154,1706315439516,-328.12380494,0.00022614,2]
[312831155,1706315439525,-150.0,0.00022616,2]
[312831156,1706315439534,-150.0,0.00022617,2]
[312831157,1706315439543,-150.0,0.00022618,2]
[312831158,1706315439552,-150.0,0.0002262,2]
[312831159,1706315439561,-150.0,0.00022621,2]
[312831160,1706315439571,-150.0,0.00022622,2]
[312831161,1706315439581,-150.0,0.00022626,2]
[312831162,1706315439591,-150.0,0.00022631,2]
[312831163,1706315439600,-150.0,0.00022635,2]
[312831164,1706315439610,-150.0,0.00022635,2]
[312831165,1706315439619,-150.0,0.00022635,2]
[312831166,1706315439628,-300.0,0.00022636,2]
[312831167,1706315439638,-150.0,0.00022646,2]
[312831168,1706315439648,-153.20760001,0.00022657,2]
[312831169,1706315439658,-150.0,0.00022658,2]
[312831170,1706315439667,-150.0,0.00022661,2]
[312831171,1706315439677,-150.0,0.00022665,2]
[312831172,1706315439686,-203.87315099,0.00022665,2]
[312831173,1706315439695,-300.0,0.00022666,2]
[312831174,1706315439704,-150.0,0.00022667,2]
[312831175,1706315439713,-1500.0,0.0002267,2]
[312831176,1706315439722,-150.0,0.00022672,2]
[312831177,1706315439732,-150.0,0.00022675,2]
[312831178,1706315439741,-150.0,0.00022682,2]
[312831179,1706315439751,-279.94118443,0.00022685,2]
[312831180,1706315439760,-150.0,0.00022686,2]
[312831181,1706315439769,-1500.0,0.00022687,2]
[312831182,1706315439778,-1500.0,0.0002269,2]
[312831183,1706315439788,-267.49459607,0.00022692,2]
[312831184,1706315439798,-751.42389674,0.00022692,2]
[312831185,1706315439807,-245.21688013,0.00022692,2]
[312831186,1706315439817,-371.63566507,0.00022692,2]
[312831187,1706315439826,-647.07582193,0.00022692,2]
[312831188,1706315439835,-303.79260505,0.00022692,2]
[312831189,1706315439846,-233.3484501,0.00022692,2]
[312831190,1706315439857,-397.53432304,0.00022692,2]
[312831191,1706315439867,-232.27722935,0.00022692,2]
[312831192,1706315439876,-2138.55836364,0.00022692,2]
[312831193,1706315439885,-319.09945817,0.00022693,2]
[312831194,1706315439894,-367.08183541,0.00022694,2]
[312831195,1706315439903,-155.0,0.00022694,2]
[312831196,1706315439912,-197.17718022,0.00022694,2]
[312831197,1706315439922,-155.0,0.00022694,2]
[312831198,1706315439931,-155.67728953,0.00022694,2]
[312831199,1706315439941,-224.4302281,0.00022694,2]
[312831200,1706315439951,-155.3699649,0.00022694,2]
[312831201,1706315439961,-155.10255778,0.00022694,2]
[312831202,1706315439971,-246.97360389,0.00022694,2]
[312831203,1706315439984,-167.25696449,0.00022694,2]
[312831204,1706315439994,-233.97687749,0.00022694,2]
[312831205,1706315440004,-679.80929767,0.00022694,2]
[312831206,1706315440015,-155.0,0.00022694,2]
[312831207,1706315440026,-207.16766932,0.00022695,2]
[312831208,1706315440036,-9558.33230344,0.00022695,2]
[312831209,1706315440046,-1136.61358873,0.00022695,2]
[312831210,1706315440057,-248.82203226,0.00022696,2]
[312831211,1706315440067,-177.94121261,0.00022696,2]
[312831212,1706315440077,-362.71070429,0.00022696,2]
[312831213,1706315440087,-413.41514132,0.00022696,2]
[312831214,1706315440097,-156.20116058,0.00022696,2]
[312831215,1706315440106,-4546.15556741,0.00022696,2]
[312831216,1706315440117,-268.48185499,0.00022696,2]
[312831217,1706315440125,-155.50144254,0.00022696,2]
[312831218,1706315440135,-155.48315498,0.00022696,2]
[312831219,1706315440145,-400.0,0.00022696,2]
[312831220,1706315440155,-304.10598474,0.00022696,2]
[312831221,1706315440165,-1027.13631238,0.00022696,2]
[312831222,1706315440174,-155.0,0.00022696,2]
[312831223,1706315440183,-1142.90256945,0.00022696,2]
[312831224,1706315440193,-156.93056967,0.00022696,2]
[312831225,1706315440332,-5007.65404292,0.00022696,2]
[312831226,1706315440341,-353.17177551,0.00022696,2]
[312831227,1706315440350,-230.26771463,0.00022696,2]
[312831228,1706315440359,-157.15593995,0.00022696,2]
[312831229,1706315440368,-537.20957409,0.00022696,2]
[312831230,1706315440379,-18365.46769937,0.00022696,2]
[312831231,1706315440388,-155.79395359,0.00022696,2]
[312831232,1706315440398,-263.54410828,0.00022696,2]
[312831233,1706315440409,-1118.51937051,0.00022696,2]
[312831234,1706315440418,-967.43524386,0.00022696,2]
[312831235,1706315440427,-1081.13587604,0.00022696,2]
[312831236,1706315440438,-222.15671962,0.00022696,2]
[312831237,1706315440448,-303.60602794,0.00022696,2]
[312831238,1706315440459,-160.68734561,0.00022696,2]
[312831239,1706315440468,-214.45570923,0.00022696,2]
[312831240,1706315440479,-285.73177074,0.00022696,2]
[312831241,1706315440488,-155.0,0.00022696,2]
[312831242,1706315440497,-239.88481281,0.00022696,2]
[312831243,1706315440506,-156.32542278,0.00022696,2]
[312831244,1706315440515,-2629.74576066,0.00022696,2]
[312831245,1706315440523,-155.98983646,0.00022696,2]
[312831246,1706315440533,-204.35837107,0.00022696,2]
[312831247,1706315440542,-2783.81299809,0.00022696,2]
[312831248,1706315440551,-189.58736514,0.00022696,2]
[312831249,1706315440559,-294.40284037,0.00022696,2]
[312831250,1706315440569,-155.38924793,0.00022696,2]
[312831251,1706315440578,-160.53662689,0.00022696,2]
[312831252,1706315440587,-155.27174667,0.00022696,2]
[312831253,1706315440597,-2114.73618969,0.00022696,2]
[312831254,1706315440606,-198.29250267,0.00022696,2]
[312831255,1706315440615,-283.49620847,0.00022696,2]
[312831256,1706315440624,-247.85570535,0.00022696,2]
[312831257,1706315440634,-155.63925711,0.00022696,2]
[312831258,1706315440644,-157.37727409,0.00022696,2]
[312831259,1706315440653,-155.0,0.00022696,2]
[312831260,1706315440663,-167.68917721,0.00022696,2]
[312831261,1706315440672,-202.88847941,0.00022696,2]
[312831262,1706315440681,-175.77733594,0.00022696,2]
[312831263,1706315440690,-201.98079591,0.00022696,2]
[312831264,1706315440699,-155.50682063,0.00022696,2]
[312831265,1706315440708,-202.51790807,0.00022696,2]
[312831266,1706315440717,-207.38836977,0.00022696,2]
[312831267,1706315440728,-155.85966932,0.00022696,2]
[312831268,1706315440737,-4623.10070962,0.00022697,2]
[312831269,1706315440746,-508.95671337,0.00022697,2]
[312831270,1706315440755,-1257.66975103,0.00022698,2]
[312831271,1706315440764,-155.0,0.00022698,2]
[312831272,1706315440773,-1315.59863163,0.00022698,2]
[312831273,1706315440783,-235.15296915,0.00022698,2]
[312831274,1706315440791,-525.02591322,0.00022698,2]
[312831275,1706315440801,-397.44,0.00022698,5]
[312831276,1706315440810,-611.37965651,0.00022698,2]
[312831277,1706315440819,-199.48283561,0.00022698,2]
[312831278,1706315440829,-377.94963997,0.00022698,2]
[312831279,1706315440838,-2579.9853789,0.00022698,2]
[312831280,1706315440850,-158.81101164,0.00022698,2]
[312831281,1706315440860,-242.59258344,0.00022698,2]
[312831282,1706315440869,-2895.79962616,0.00022698,2]
[312831283,1706315440879,-159.47561992,0.00022698,2]
[312831284,1706315440888,-162.94288834,0.00022698,2]
[312831285,1706315440897,-197.72412545,0.00022698,2]
[312831286,1706315440906,-209.87013274,0.00022698,2]
[312831287,1706315440916,-885.28401879,0.00022698,2]
[312831288,1706315440925,-296.68841754,0.00022698,2]
[312831289,1706315440934,-205.43932251,0.00022698,2]
[312831290,1706315440943,-628.4192422,0.00022698,2]
[312831291,1706315440952,-3629.47558166,0.00022698,2]
[312831292,1706315440962,-254.70017994,0.00022698,2]
[312831293,1706315440971,-240.96212358,0.00022698,2]
[312831294,1706315440982,-299.41307297,0.00022698,2]
[312831295,1706315440991,-1000.0,0.00022698,2]
[312831296,1706315441000,-3333.08138673,0.00022698,2]
[312831297,1706315441009,-177.84994256,0.00022698,2]
[312831298,1706315441018,-254.57095446,0.00022698,2]
[312831299,1706315441028,-155.944763,0.00022698,2]
[312831300,1706315441037,-158.99721856,0.00022698,2]
[312831301,1706315441047,-215.84045739,0.00022698,2]
[312831302,1706315441056,-158.23782566,0.00022698,2]
[312831303,1706315441065,-158.40661774,0.00022698,2]
[312831304,1706315441075,-542.14027525,0.00022698,2]
[312831305,1706315441084,-172.29367536,0.00022698,2]
[312831306,1706315441093,-276.84231513,0.00022698,2]
[312831307,1706315441102,-203.54099901,0.00022698,2]
[312831308,1706315441111,-281.16140567,0.00022698,2]
[312831309,1706315441120,-156.50734684,0.00022698,2]
[312831310,1706315441130,-156.59385791,0.00022698,2]
[312831311,1706315441139,-155.20947162,0.00022698,2]
[312831312,1706315441148,-358.15361486,0.00022698,2]
[312831313,1706315441157,-210.60878852,0.00022698,2]
[312831314,1706315441167,-156.16813554,0.00022698,2]
[312831315,1706315441177,-184.34909623,0.00022698,2]
[312831316,1706315441186,-156.77003848,0.00022698,2]
[312831317,1706315441195,-285.81614181,0.00022698,2]
[312831318,1706315441204,-317.92623857,0.00022698,2]
[312831319,1706315441213,-2214.95155014,0.00022698,2]
[312831320,1706315441222,-875.46129188,0.00022698,2]
[312831321,1706315441233,-268.84831641,0.00022698,2]
[312831322,1706315441242,-330.59426086,0.00022698,2]
[312831323,1706315441250,-155.0,0.00022698,2]
[312831324,1706315441260,-384.14173647,0.00022698,2]
[312831325,1706315441269,-1837.07226017,0.00022698,2]
[312831326,1706315441278,-155.43310874,0.00022698,2]
[312831327,1706315441287,-245.466447,0.00022698,2]
[312831328,1706315441296,-192.59260951,0.00022698,2]
[312831329,1706315441305,-220.06807054,0.00022698,2]
[312831330,1706315441314,-337.58217635,0.00022698,2]
[312831331,1706315441323,-221.66172776,0.00022698,2]
[312831332,1706315441332,-285.60520085,0.00022698,2]
[312831333,1706315441341,-1192.6168244,0.00022698,2]
[312831334,1706315441350,-10537.74843302,0.00022699,2]
[312831335,1706315441360,-2000.0,0.000227,2]
[312831336,1706315441368,-200.0,0.000227,2]
[312831337,1706315441377,-200.0,0.00022717,2]
[312831338,1706315441387,-153.20760001,0.00022738,2]
[312831339,1706315441396,-1606.9,0.0002275,2]
[312831340,1706315441405,-300.0,0.00022761,2]
[312831341,1706315441414,-155.0,0.000228,2]
[312831342,1706315441423,-200.0,0.00022816,2]
[312831344,1706315441431,-882.783327,0.00022816,2]
[312831345,1706315441440,-153.20760001,0.00022819,2]
[312831346,1706315441449,-150.0,0.00022839,2]
[312831347,1706315441458,-150.0,0.00022844,2]
[312831348,1706315441466,-150.0,0.00022853,2]
[312831349,1706315441475,-390.22628193,0.00022856,2]
[312831350,1706315441485,-300.0,0.00022863,2]
[312831351,1706315441494,-300.0,0.0002287,2]
[312831352,1706315441503,-229.58564176,0.0002287,2]
[312831353,1706315441512,-152.48887464,0.000229,2]
[312831354,1706315441521,-153.20760001,0.000229,2]
[312831355,1706315441530,-6934.4438,0.000229,2]
[312831356,1706315441539,-150.0,0.00022909,2]
[312831357,1706315441548,-150.0,0.00022923,2]
[312831358,1706315441557,-2000.0,0.00022927,2]
[312831359,1706315441566,-200.0,0.00022927,2]
[312831360,1706315441575,-1468.60968576,0.00022959,2]
[312831361,1706315441584,-150.0,0.00022969,2]
[312831362,1706315441593,-150.0,0.00022974,2]
[312831363,1706315441602,-150.0,0.00022978,2]
[312831364,1706315441611,-652.84309835,0.0002299,2]
[312831365,1706315441621,-652.84309835,0.0002299,2]
[312831366,1706315441630,-150.0,0.00022994,2]
[312831367,1706315441639,-228.47561221,0.00022998,2]
[312831368,1706315441648,-209.48014236,0.00022998,2]
[312831369,1706315441657,-150.01,0.00022999,2]
[312831370,1706315441666,-1639.37966578,0.00022999,2]
[312831371,1706315441676,-463.11594283,0.00022999,2]
[312831372,1706315441685,-500.0,0.00022999,2]
[312831373,1706315441694,-420.59010105,0.00022999,2]
[312831374,1706315441703,-500.0,0.00022999,2]
[312831375,1706315441712,-622.308719,0.00022999,2]
[312831376,1706315441721,-258.20366855,0.00022999,2]
[312831377,1706315441732,-1226922.67096024,0.00023,2]
[312831378,1706315441795,-310.51257539,0.00023,2]
[312831379,1706315441806,-808.75030777,0.00023,2]
[312831380,1706315441817,-741.27723955,0.00023,2]
[312831381,1706315441827,-420.8888349,0.00023,2]
[312831382,1706315442147,-281.58631847,0.00023,2]
[312831383,1706315442158,-892.77987388,0.00023,2]
[312831384,1706315442318,-209250.0,0.00023,2]
[312831385,1706315442329,-991.93470308,0.00023,2]
[312831386,1706315442340,-483.648,0.00023,2]
[312831387,1706315442392,-1488.91443361,0.00023,2]
[312831388,1706315442403,-568.52842727,0.00023,2]
[312831389,1706315442414,-4499.13545057,0.00023,2]
[312831390,1706315442433,-424.5191321,0.00023,2]
[312831391,1706315442444,-284.23437747,0.00023,2]
[312831392,1706315442454,-6860.12709998,0.00023,2]
[312831415,1706315443035,-290.49065096,0.00022698,3]
[312831417,1706315443044,-96.47388904,0.00023,2]
[312831504,1706315443870,-4172.0,0.00023,2]
[312831512,1706315443933,-1851.05373879,0.00023,2]
[312831514,1706315443945,-3294.66483035,0.00023,2]
[312831563,1706315446008,-894976.30641064,0.00023,2]
[312831564,1706315446018,-189572.7252945,0.00023,2]
[312831565,1706315446069,-388.34648722,0.00023,2]
[312831566,1706315446080,-24220.30016826,0.00023,2]
[312831567,1706315446092,-4419.63900856,0.00023,2]
[312831577,1706315447272,-592298.18347327,0.00023,2]
[312831578,1706315448257,-47416.08790017,0.00023,2]
[312831579,1706315448288,-825.12309966,0.00023,2]
[312831581,1706315511713,4797.7006,0.00021531,2]
[312831582,1706315517831,11989.8148,0.00021598,2]
[312831583,1706315521161,300.0,0.0002152,2]
[312831586,1706315560097,215.79,0.00019911,2]
[312831587,1706315602138,2000.0,0.00020653,2]
[312831588,1706315623469,1701.17112174,0.00021617,2]
[312831589,1706315671485,257.96700771,0.00021614,2]
[312831590,1706315676814,1581.07114184,0.00021617,2]
[312831591,1706315678313,194.58103894,0.00021617,2]
[312831592,1706315685768,167.61944862,0.00021617,2]
[312831593,1706315696583,290.3371,0.00021613,2]
[312831594,1706315702278,468.94,0.00020718,2]
[312831595,1706315703330,346.27007994,0.00021617,2]
[312831596,1706315711632,4909.63669466,0.00021617,2]
[312831597,1706315716690,598.46152252,0.00021617,2]
[312831598,1706315722380,3063.49005566,0.00021617,2]
[312831599,1706315742154,970.1549,0.00021614,2]
[312831600,1706315749447,440.8347,0.00021613,14]
[312831606,1706315752614,302.4,0.00021559,2]
[312831607,1706315753525,1134.11408116,0.00021617,2]
[312831609,1706315809315,194.58103892,0.00021617,2]
[312831610,1706315811859,1054.0474279,0.00021617,2]
[312831611,1706315833848,14116.68636142,0.00021617,2]
[312831612,1706315846870,3273.09112978,0.00021617,2]
[312831613,1706315883824,756.07605412,0.00021617,2]
[312831614,1706315894039,230.84671996,0.00021617,2]
[312831615,1706315895068,167.63,0.00020653,2]
[312831616,1706315902813,2042.32670376,0.00021617,2]
[312831617,1706315916991,398.97434834,0.00021617,2]
[312831618,1706315929836,194.58103892,0.00021617,2]
[312831619,1706315947338,702.69828526,0.00021617,2]
[312831620,1706315957922,1000.0,0.00021616,2]
[312831621,1706315982042,2182.06075318,0.00021617,2]
[312831622,1706316004666,250.0,0.00021599,2]
[312831623,1706316014122,504.05070274,0.00021617,2]
[312831625,1706316031825,1464.33684329,0.00021617,2]
[312831626,1706316056965,205.0,0.00019781,2]
[312831627,1706316070166,2500.0,0.00021616,2]
[312831628,1706316082645,468.4655235,0.00021617,2]
[312831629,1706316083085,-384.9160274,0.00021697,2]
[312831630,1706316083105,-279.66119511,0.00021698,2]
[312831631,1706316083127,-4253.55434968,0.00021713,2]
[312831632,1706316083146,-164.23836392,0.00021714,2]
[312831633,1706316083166,-319.23605445,0.00021714,2]
[312831634,1706316083187,-270.84082202,0.00021714,2]
[312831635,1706316083209,-300.0,0.00021714,2]
[312831636,1706316083228,-207.15952483,0.00021715,2]
[312831637,1706316083250,-346.39366259,0.00021715,2]
[312831638,1706316083279,1361.55113584,0.00021617,2]
[312831639,1706316084033,230.84671994,0.00021617,2]
[312831640,1706316117246,1454.70716878,0.00021617,2]
[312831641,1706316117395,265.9828989,0.00021617,2]
[312831642,1706316121630,176.58,0.00020716,2]
[312831643,1706316122904,176.58,0.00021264,2]
[312831644,1706316144400,336.03380182,0.00021617,2]
[312831645,1706316149066,390.78,0.00021609,2]
[312831646,1706316155213,-383.99012555,0.00021713,2]
[312831647,1706316155234,-318.96286189,0.00021713,2]
[312831648,1706316155254,-164.23836392,0.00021714,2]
[312831649,1706316155275,-156.85844893,0.00021714,2]
[312831650,1706316155296,-3185.77964943,0.00021714,2]
[312831651,1706316155316,-178.33730768,0.00021715,2]
[312831652,1706316155336,-254.10632496,0.00021715,2]
[312831653,1706316155357,-379.43017785,0.00021715,2]
[312831654,1706316155377,-304.24936636,0.00021715,2]
[312831655,1706316155397,-43070.88092127,0.00021715,2]
[312831656,1706316155418,-743.16645216,0.00021716,2]
[312831657,1706316158507,1231.47,0.00021615,2]
[312831658,1706316171381,155.0,0.00019543,2]
[312831659,1706316174951,561.51478483,0.00019326,2]
[312831660,1706316189545,961.144,0.00021616,2]
[312831661,1706316195613,1000.0,0.00021616,2]
[312831662,1706316199408,758.08,0.00021615,2]
[312831663,1706316208601,-278.0,0.00021714,2]
[312831664,1706316217742,312.310349,0.00021617,2]
[312831665,1706316233938,230.84671994,0.00021617,2]
[312831666,1706316252134,1281.29473787,0.00021616,2]
[312831667,1706316252461,969.8047792,0.00021617,2]
[312831668,1706316263477,907.70075724,0.00021617,2]
[312831669,1706316275176,224.02253456,0.00021617,2]
[312831670,1706316289518,5000.0,0.00021617,2]
[312831671,1706316310046,174.12,0.00021609,2]
[312831672,1706316317757,177.3219326,0.00021617,2]
[312831673,1706316326482,1688.325,0.00021616,2]
[312831674,1706316353077,208.20689934,0.00021617,2]
[312831675,1706316387651,646.53651946,0.00021617,2]
[312831676,1706316433789,5000.0,0.00021617,2]
[312831677,1706316443759,605.13383816,0.00021617,2]
[312831678,1706316455972,250.0,0.00021592,2]
[312831679,1706316461279,1000.0,0.00021616,2]
[312831680,1706316467603,1121.13289561,0.00021616,2]
[312831681,1706316474508,194.75,0.00019688,2]
[312831682,1706316479897,16119.2649,0.00021616,2]
[312831683,1706316518093,177.32193258,0.00021617,2]
[312831684,1706316522796,431.0243463,0.00021617,2]
[312831685,1706316534627,2644.627,0.00021616,2]
[312831686,1706316571926,1260.30519045,0.00021617,2]
[312831687,1706316571949,3739.69480955,0.00021617,2]
[312831688,1706316611059,325.65,0.00021594,2]
[312831689,1706316615398,393.53,0.00021594,2]
[312831690,1706316624106,54.40365978,0.00021617,2]
[312831691,1706316624131,349.01889898,0.00021617,2]
[312831702,1706316634521,-479.78035848,0.00021713,2]
[312831703,1706316634532,-226.75379186,0.00021714,2]
[312831704,1706316634541,-286.08113397,0.00021715,2]
[312831705,1706316634554,-7801.66328586,0.00021715,2]
[312831706,1706316634564,-163.95986144,0.00021715,2]
[312831707,1706316634574,-171.70472139,0.00021715,2]
[312831708,1706316634583,-177.57632574,0.00021715,2]
[312831709,1706316634603,-33634.43814531,0.00021715,2]
[312831710,1706316634614,-2574.29597925,0.00021716,2]
[312831711,1706316634623,-19706.32850358,0.00021716,2]
[312831712,1706316634635,-1046.5,0.00021716,2]
[312831713,1706316634647,-296.96659424,0.00021716,2]
[312831714,1706316634665,-43966.84,0.00021716,2]
[312831715,1706316634679,-501.10653636,0.00021716,2]
[312831716,1706316634709,-410.62500001,0.00021716,2]
[312831717,1706316634774,-390.72,0.00021716,2]
[312831718,1706316634786,-1124.72457423,0.00021716,2]
[312831719,1706316634798,-418.79592,0.00021716,2]
[312831720,1706316634809,-9769.5,0.00021716,2]
[312831721,1706316634821,-2107.65555,0.00021716,2]
[312831750,1706316638189,-1866.663385,0.00021716,2]
[312831751,1706316638201,-637.92358072,0.00021716,2]
[312831752,1706316638217,-976398.90742558,0.00021716,2]
[312831753,1706316638228,-52293.654,0.00021716,2]
[312831754,1706316638238,-43462.7557,0.00021717,2]
[312831755,1706316638247,-1000.0,0.00021717,2]
[312831756,1706316638256,-529947.8699,0.00021717,2]
[312831757,1706316638265,-71315.4393,0.00021717,2]
[312831758,1706316638274,-245000.0,0.00021717,2]
[312831759,1706316638284,-176.58,0.00021812,2]
[312831760,1706316638293,-231.31,0.00021878,2]
[312831761,1706316638303,-194.83861759,0.00021918,2]
[312831762,1706316638312,-277.67,0.00021918,2]
[312831763,1706316638322,-150.99,0.00021918,2]
[312831764,1706316638331,-999.99,0.00021918,2]
[312831765,1706316638341,-815.36,0.00021918,2]
[312831766,1706316638350,-150.99,0.00021918,2]
[312831767,1706316638359,-250.0,0.00021918,2]
[312831768,1706316638368,-3527.18,0.00021918,2]
[312831769,1706316638378,-173.75,0.00021918,2]
[312831770,1706316638387,-37811.31,0.00021918,2]
[312831771,1706316638396,-499.99,0.00021918,2]
[312831772,1706316638406,-231.31,0.00021938,2]
[312831773,1706316638414,-194.75,0.00021952,2]
[312831774,1706316638424,-231.31,0.00021998,2]
[312831775,1706316638433,-1043.56158327,0.00022,2]
[312831776,1706316638442,-277.53003383,0.00022,2]
[312831777,1706316638452,-231.31,0.00022058,2]
[312831778,1706316638461,-231.31,0.00022118,2]
[312831779,1706316638471,-231.31,0.00022178,2]
[312831780,1706316638480,-231.31,0.00022238,2]
[312831781,1706316638489,-231.31,0.00022298,2]
[312831782,1706316638499,-1794.30375309,0.00022307,2]
[312831784,1706316638509,-1453.94737551,0.00022308,2]
[312831785,1706316638518,-1453.94737552,0.00022308,2]
[312831787,1706316638529,-231.31,0.00022358,2]
[312831789,1706316638538,-176.58,0.0002236,2]
[312831791,1706316638548,-231.31,0.00022418,2]
[312831793,1706316638557,-231.31,0.00022478,2]
[312831795,1706316638566,-231.31,0.00022538,2]
[312831797,1706316638576,-231.31,0.00022598,2]
[312831799,1706316638585,-155.0,0.0002261,2]